Workbook

Sheet Приложение 1
O1: Приложение 1 к решению региональной службы по тарифам Нижегородской области от 18 декабря 2015 года № 50/52 | P1: Стандартизированные тарифные ставки для расчета платы за технологическое присоединение к электрическим сетям ООО «Нижегородская электросетевая компания» на 2016 год для заявителей, осуществляющих технологическое присоединение своих энергопринимающих устройств максимальной мощностью до 150 кВт
A3: Стандартизированные тарифные ставки на покрытие расходов на технологическое присоединение энергопринимающих устройств заявителей, не включающие в себя строительство объектов электросетевого хозяйства, С1, руб./кВт, (в ценах 2016 года)
A4: Наименование | L4: Постоянная схема электроснабжения | N4: Временная схема электроснабжения
L6: 0,4кВ | M6: 6-10кВ | N6: 0,4кВ | O6: 6-10кВ
A7: Стандартизированная тарифная ставка (руб./кВт), всего, в том числе по мероприятиям: | L7: 83.86 | M7: 73.42 | N7: 83.86 | O7: 73.42
A8: Подготовка и выдача сетевой организацией технических условий заявителю,С1.1 | L8: 15.43 | M8: 13.51 | N8: 15.43 | O8: 13.51
A9: Проверка сетевой организацией выполнения заявителем технических условий, С1.2 | L9: 24.73 | M9: 21.65 | N9: 24.73 | O9: 21.65
A10: Участие в осмотре должностным лицом органа федерального государственного энергетического надзора присоединяемых устройств заявителя, С1.3 | L10: - | M10: - | N10: - | O10: -
A11: Фактические действия по присоединению и обеспечению работы устройств в электрической сети, С1.4 | L11: 43.70 | M11: 38.26 | N11: 43.70 | O11: 38.26
A13: Стандартизированные тарифные ставки на покрытие расходов в части строительства воздушных линий электропередач, С2, руб./1 км, без НДС, (в ценах 2001 года)
A14: Уровень напряжения, кВ | C14: СИП 2 | J14: СИП 3 | O14: АС
C15: 3х16мм2+1х25мм2 | D15: 3x25мм2+1x35мм2 | E15: 3x35мм2+1x50 мм2 | F15: 3x50мм2+1x50мм2 | G15: 3x70мм2+1x70мм2 | H15: 3x95мм2+1x95мм2 | I15: 3х120мм2+1х95мм2 | J15: 1х35мм2 | K15: 1х50мм2 | L15: 1х70мм2 | M15: 1х95мм2 | N15: 1х120мм2 | O15: 35мм2 | P15: 50мм2/8,0 | Q15: 70мм2/11,0 | R15: 95мм2/16,0 | S15: 120мм2/19,0
A16: 0,4 | C16: ='[2]ст.ставки св.150'!C18/2 -> 68,665.81 | D16: ='[2]ст.ставки св.150'!D18/2 -> 69,638.55 | E16: ='[2]ст.ставки св.150'!E18/2 -> 74,307.68 | F16: ='[2]ст.ставки св.150'!F18/2 -> 80,607.94 | G16: ='[2]ст.ставки св.150'!G18/2 -> 85,449.56 | H16: ='[2]ст.ставки св.150'!H18/2 -> 89,011.47 | I16: ='[2]ст.ставки св.150'!I18/2 -> 92,854.41 | J16: х | K16: х | L16: х | M16: х | N16: х | O16: х | P16: х | Q16: х | R16: х | S16: х
A17: 6-10 | C17: х | D17: х | E17: х | F17: х | G17: х | H17: х | I17: х | J17: ='[2]ст.ставки св.150'!J19/2 -> 109,827.74 | K17: ='[2]ст.ставки св.150'!K19/2 -> 118,979.05 | L17: ='[2]ст.ставки св.150'!L19/2 -> 124,652.45 | M17: ='[2]ст.ставки св.150'!M19/2 -> 135,966.85 | N17: ='[2]ст.ставки св.150'!N19/2 -> 147,608.34 | O17: ='[2]ст.ставки св.150'!O19/2 -> 71,307.35 | P17: ='[2]ст.ставки св.150'!P19/2 -> 75,930.03 | Q17: ='[2]ст.ставки св.150'!Q19/2 -> 78,238.41 | R17: ='[2]ст.ставки св.150'!R19/2 -> 82,933.67 | S17: ='[2]ст.ставки св.150'!S19/2 -> 86,324.55
A19: Стандартизированные тарифные ставки на покрытие расходов в части строительства кабельных линий электропередач без прокола грунта, С3, руб./1 км, без НДС, (в ценах 2001 года)
A20: Уровень напряжения, кВ | B20: Тип застройки | C20: ААБл-1 | J20: ААБл-10 | O20: АПвПг-10
C21: 50мм2 | D21: 70мм2 | E21: 95мм2 | F21: 120мм2 | G21: 150мм2 | H21: 185мм2 | I21: 240мм2 | J21: 3х70мм2 | K21: 3х95мм2 | L21: 3х120мм2 | M21: 3х150мм2 | N21: 3х240мм2 | O21: 3х70мм2/35 | P21: 3х95мм2/35 | Q21: 3х120мм2/50 | R21: 3х240мм2/70 | S21: 3х300мм2 /70 | T21: 3х400мм2/70 | U21: 3х500мм2/70
A22: 0,4 | B22: городская | C22: ='[2]ст.ставки св.150'!C24/2 -> 227,413.03 | D22: ='[2]ст.ставки св.150'!D24/2 -> 230,475.94 | E22: ='[2]ст.ставки св.150'!E24/2 -> 256,918.68 | F22: ='[2]ст.ставки св.150'!F24/2 -> 275,090.98 | G22: ='[2]ст.ставки св.150'!G24/2 -> 280,100.95 | H22: ='[2]ст.ставки св.150'!H24/2 -> 291,113.48 | I22: ='[2]ст.ставки св.150'!I24/2 -> 314,530.98 | J22: х | K22: х | L22: х | M22: х | N22: х | O22: х | P22: х | Q22: х | R22: х | S22: х | T22: х | U22: х
A23: 0,4 | B23: сельская | C23: ='[2]ст.ставки св.150'!C25/2 -> 121,233.32 | D23: ='[2]ст.ставки св.150'!D25/2 -> 135,774.32 | E23: ='[2]ст.ставки св.150'!E25/2 -> 146,801.59 | F23: ='[2]ст.ставки св.150'!F25/2 -> 166,020.40 | G23: ='[2]ст.ставки св.150'!G25/2 -> 169,299.46 | H23: ='[2]ст.ставки св.150'!H25/2 -> 181,336.94 | I23: ='[2]ст.ставки св.150'!I25/2 -> 190,934.86 | J23: х | K23: х | L23: х | M23: х | N23: х | O23: х | P23: х | Q23: х | R23: х | S23: х | T23: х | U23: х
A24: 6-10 | B24: городская | C24: х | D24: х | E24: х | F24: х | G24: х | H24: х | I24: х | J24: ='[2]ст.ставки св.150'!J26/2 -> 251,559.31 | K24: ='[2]ст.ставки св.150'!K26/2 -> 268,194.51 | L24: ='[2]ст.ставки св.150'!L26/2 -> 284,491.61 | M24: ='[2]ст.ставки св.150'!M26/2 -> 295,033.69 | N24: ='[2]ст.ставки св.150'!N26/2 -> 326,920.51 | O24: ='[2]ст.ставки св.150'!O26/2 -> 376,238.91 | P24: ='[2]ст.ставки св.150'!P26/2 -> 393,842.60 | Q24: ='[2]ст.ставки св.150'!Q26/2 -> 418,241.36 | R24: ='[2]ст.ставки св.150'!R26/2 -> 460,064.56 | S24: ='[2]ст.ставки св.150'!S26/2 -> 473,258.12 | T24: ='[2]ст.ставки св.150'!T26/2 -> 478,274.53 | U24: ='[2]ст.ставки св.150'!U26/2 -> 513,145.46
A25: 6-10 | B25: сельская | C25: х | D25: х | E25: х | F25: х | G25: х | H25: х | I25: х | J25: ='[2]ст.ставки св.150'!J27/2 -> 159,039.76 | K25: ='[2]ст.ставки св.150'!K27/2 -> 167,782.33 | L25: ='[2]ст.ставки св.150'!L27/2 -> 181,405.17 | M25: ='[2]ст.ставки св.150'!M27/2 -> 194,793.00 | N25: ='[2]ст.ставки св.150'!N27/2 -> 221,240.84 | O25: х | P25: х | Q25: х | R25: х | S25: х | T25: х | U25: х
A27: Уровень напряжения, кВ | B27: Тип застройки | C27: АПвБбШПг-1 | J27: ААБ2лШв-10 | O27: АПвПу2г-10
C28: 50мм2 | D28: 70мм2 | E28: 95мм2 | F28: 120мм2 | G28: 150мм2 | H28: 185мм2 | I28: 240мм2 | J28: 3х70мм2 | K28: 3х95мм2 | L28: 3х120мм2 | M28: 3х150мм2 | N28: 3х240мм2 | O28: 3х70мм2/35 | P28: 3х95мм2/35 | Q28: 3х120мм2/50 | R28: 3х240мм2/70 | S28: 3х300мм2 /70 | T28: 3х400мм2/70 | U28: 3х500мм2/70
A29: 0,4 | B29: городская | C29: ='[2]ст.ставки св.150'!C31/2 -> 217,638.13 | D29: ='[2]ст.ставки св.150'!D31/2 -> 238,213.19 | E29: ='[2]ст.ставки св.150'!E31/2 -> 247,828.38 | F29: ='[2]ст.ставки св.150'!F31/2 -> 257,659.13 | G29: ='[2]ст.ставки св.150'!G31/2 -> 265,547.05 | H29: ='[2]ст.ставки св.150'!H31/2 -> 274,999.55 | I29: ='[2]ст.ставки св.150'!I31/2 -> 293,308.92 | J29: х | K29: х | L29: х | M29: х | N29: х | O29: х | P29: х | Q29: х | R29: х | S29: х | T29: х | U29: х
A30: 0,4 | B30: сельская | C30: ='[2]ст.ставки св.150'!C32/2 -> 126,192.01 | D30: ='[2]ст.ставки св.150'!D32/2 -> 133,603.98 | E30: ='[2]ст.ставки св.150'!E32/2 -> 145,306.05 | F30: ='[2]ст.ставки св.150'!F32/2 -> 152,546.94 | G30: ='[2]ст.ставки св.150'!G32/2 -> 161,184.88 | H30: ='[2]ст.ставки св.150'!H32/2 -> 174,312.46 | I30: ='[2]ст.ставки св.150'!I32/2 -> 187,891.23 | J30: х | K30: х | L30: х | M30: х | N30: х | O30: х | P30: х | Q30: х | R30: х | S30: х | T30: х | U30: х
A31: 6-10 | B31: городская | C31: х | D31: х | E31: х | F31: х | G31: х | H31: х | I31: х | J31: ='[2]ст.ставки св.150'!J33/2 -> 295,181.78 | K31: ='[2]ст.ставки св.150'!K33/2 -> 325,930.58 | L31: ='[2]ст.ставки св.150'!L33/2 -> 336,473.48 | M31: ='[2]ст.ставки св.150'!M33/2 -> 351,886.54 | N31: ='[2]ст.ставки св.150'!N33/2 -> 358,198.29 | O31: ='[2]ст.ставки св.150'!O33/2 -> 391,554.91 | P31: ='[2]ст.ставки св.150'!P33/2 -> 406,498.13 | Q31: ='[2]ст.ставки св.150'!Q33/2 -> 427,483.08 | R31: ='[2]ст.ставки св.150'!R33/2 -> 477,111.54 | S31: ='[2]ст.ставки св.150'!S33/2 -> 488,506.30 | T31: ='[2]ст.ставки св.150'!T33/2 -> 511,744.67 | U31: ='[2]ст.ставки св.150'!U33/2 -> 538,456.48
A32: 6-10 | B32: сельская | C32: х | D32: х | E32: х | F32: х | G32: х | H32: х | I32: х | J32: ='[2]ст.ставки св.150'!J34/2 -> 162,986.46 | K32: ='[2]ст.ставки св.150'!K34/2 -> 175,623.80 | L32: ='[2]ст.ставки св.150'!L34/2 -> 187,377.38 | M32: ='[2]ст.ставки св.150'!M34/2 -> 200,596.49 | N32: ='[2]ст.ставки св.150'!N34/2 -> 211,148.71 | O32: х | P32: х | Q32: х | R32: х | S32: х | T32: х | U32: х
A34: Стандартизированные тарифные ставки на покрытие расходов в части строительства кабельных линий электропередачив с проколом грунта методом горизонтально-направленного бурения, С3, руб./на 100 м. линий, без НДС, (в ценах 2001 года)
A35: Уровень напряжения, кВ | B35: Тип застройки | C35: ААБл-1 | J35: ААБл-10 | O35: АПвПг-10
C36: 50мм2 | D36: 70мм2 | E36: 95мм2 | F36: 120мм2 | G36: 150мм2 | H36: 185мм2 | I36: 240мм2 | J36: 3х70мм2 | K36: 3х95мм2 | L36: 3х120мм2 | M36: 3х150мм2 | N36: 3х240мм2 | O36: 3х70мм2/35 | P36: 3х95мм2/35 | Q36: 3х120мм2/50 | R36: 3х240мм2/70 | S36: 3х300мм2 /70 | T36: 3х400мм2/70 | U36: 3х500мм2/70
A37: 0,4 | B37: городская | C37: ='[2]ст.ставки св.150'!C39/2 -> 102,767.93 | D37: ='[2]ст.ставки св.150'!D39/2 -> 105,354.87 | E37: ='[2]ст.ставки св.150'!E39/2 -> 106,560.29 | F37: ='[2]ст.ставки св.150'!F39/2 -> 108,128.63 | G37: ='[2]ст.ставки св.150'!G39/2 -> 108,676.83 | H37: ='[2]ст.ставки св.150'!H39/2 -> 109,869.75 | I37: ='[2]ст.ставки св.150'!I39/2 -> 110,176.17 | J37: х | K37: х | L37: х | M37: х | N37: х | O37: х | P37: х | Q37: х | R37: х | S37: х | T37: х | U37: х
A38: 0,4 | B38: сельская | C38: ='[2]ст.ставки св.150'!C40/2 -> 102,767.93 | D38: ='[2]ст.ставки св.150'!D40/2 -> 105,354.87 | E38: ='[2]ст.ставки св.150'!E40/2 -> 106,560.29 | F38: ='[2]ст.ставки св.150'!F40/2 -> 108,128.63 | G38: ='[2]ст.ставки св.150'!G40/2 -> 108,676.83 | H38: ='[2]ст.ставки св.150'!H40/2 -> 109,869.75 | I38: ='[2]ст.ставки св.150'!I40/2 -> 110,176.17 | J38: х | K38: х | L38: х | M38: х | N38: х | O38: х | P38: х | Q38: х | R38: х | S38: х | T38: х | U38: х
A39: 6-10 | B39: городская | C39: х | D39: х | E39: х | F39: х | G39: х | H39: х | I39: х | J39: ='[2]ст.ставки св.150'!J41/2 -> 106,276.98 | K39: ='[2]ст.ставки св.150'!K41/2 -> 107,553.20 | L39: ='[2]ст.ставки св.150'!L41/2 -> 108,437.58 | M39: ='[2]ст.ставки св.150'!M41/2 -> 109,592.63 | N39: ='[2]ст.ставки св.150'!N41/2 -> 114,000.35 | O39: ='[2]ст.ставки св.150'!O41/2 -> 145,780.88 | P39: ='[2]ст.ставки св.150'!P41/2 -> 148,065.55 | Q39: ='[2]ст.ставки св.150'!Q41/2 -> 150,958.79 | R39: ='[2]ст.ставки св.150'!R41/2 -> 155,316.09 | S39: ='[2]ст.ставки св.150'!S41/2 -> 159,272.65 | T39: ='[2]ст.ставки св.150'!T41/2 -> 161,977.26 | U39: ='[2]ст.ставки св.150'!U41/2 -> 164,102.06
A40: 6-10 | B40: сельская | C40: х | D40: х | E40: х | F40: х | G40: х | H40: х | I40: х | J40: ='[2]ст.ставки св.150'!J42/2 -> 106,276.98 | K40: ='[2]ст.ставки св.150'!K42/2 -> 107,553.20 | L40: ='[2]ст.ставки св.150'!L42/2 -> 108,437.58 | M40: ='[2]ст.ставки св.150'!M42/2 -> 109,592.63 | N40: ='[2]ст.ставки св.150'!N42/2 -> 114,000.35 | O40: х | P40: х | Q40: х | R40: х | S40: х | T40: х | U40: х
A42: Уровень напряжения, кВ | B42: Тип застройки | C42: АПвБбШПг-1 | J42: ААБ2лШв-10 | O42: АПвПу2г-10
C43: 50мм2 | D43: 70мм2 | E43: 95мм2 | F43: 120мм2 | G43: 150мм2 | H43: 185мм2 | I43: 240мм2 | J43: 3х70мм2 | K43: 3х95мм2 | L43: 3х120мм2 | M43: 3х150мм2 | N43: 3х240мм2 | O43: 3х70мм2/35 | P43: 3х95мм2/35 | Q43: 3х120мм2/50 | R43: 3х240мм2/70 | S43: 3х300мм2 /70 | T43: 3х400мм2/70 | U43: 3х500мм2/70
A44: 0,4 | B44: городская | C44: ='[2]ст.ставки св.150'!C46/2 -> 92,978.38 | D44: ='[2]ст.ставки св.150'!D46/2 -> 94,912.51 | E44: ='[2]ст.ставки св.150'!E46/2 -> 95,100.75 | F44: ='[2]ст.ставки св.150'!F46/2 -> 97,823.14 | G44: ='[2]ст.ставки св.150'!G46/2 -> 98,174.45 | H44: ='[2]ст.ставки св.150'!H46/2 -> 98,708.34 | I44: ='[2]ст.ставки св.150'!I46/2 -> 100,646.93 | J44: х | K44: х | L44: х | M44: х | N44: х | O44: х | P44: х | Q44: х | R44: х | S44: х | T44: х | U44: х
A45: 0,4 | B45: сельская | C45: ='[2]ст.ставки св.150'!C47/2 -> 92,978.38 | D45: ='[2]ст.ставки св.150'!D47/2 -> 94,912.51 | E45: ='[2]ст.ставки св.150'!E47/2 -> 95,100.75 | F45: ='[2]ст.ставки св.150'!F47/2 -> 97,823.14 | G45: ='[2]ст.ставки св.150'!G47/2 -> 98,174.45 | H45: ='[2]ст.ставки св.150'!H47/2 -> 98,708.34 | I45: ='[2]ст.ставки св.150'!I47/2 -> 100,646.93 | J45: х | K45: х | L45: х | M45: х | N45: х | O45: х | P45: х | Q45: х | R45: х | S45: х | T45: х | U45: х
A46: 6-10 | B46: городская | C46: х | D46: х | E46: х | F46: х | G46: х | H46: х | I46: х | J46: ='[2]ст.ставки св.150'!J48/2 -> 101,755.81 | K46: ='[2]ст.ставки св.150'!K48/2 -> 109,958.56 | L46: ='[2]ст.ставки св.150'!L48/2 -> 112,113.14 | M46: ='[2]ст.ставки св.150'!M48/2 -> 116,609.00 | N46: ='[2]ст.ставки св.150'!N48/2 -> 117,807.32 | O46: ='[2]ст.ставки св.150'!O48/2 -> 156,492.93 | P46: ='[2]ст.ставки св.150'!P48/2 -> 158,268.31 | Q46: ='[2]ст.ставки св.150'!Q48/2 -> 161,216.57 | R46: ='[2]ст.ставки св.150'!R48/2 -> 167,881.83 | S46: ='[2]ст.ставки св.150'!S48/2 -> 168,657.27 | T46: ='[2]ст.ставки св.150'!T48/2 -> 172,793.36 | U46: ='[2]ст.ставки св.150'!U48/2 -> 174,424.58
A47: 6-10 | B47: сельская | C47: х | D47: х | E47: х | F47: х | G47: х | H47: х | I47: х | J47: ='[2]ст.ставки св.150'!J49/2 -> 101,755.81 | K47: ='[2]ст.ставки св.150'!K49/2 -> 109,958.56 | L47: ='[2]ст.ставки св.150'!L49/2 -> 112,113.14 | M47: ='[2]ст.ставки св.150'!M49/2 -> 116,609.00 | N47: ='[2]ст.ставки св.150'!N49/2 -> 117,807.32 | O47: х | P47: х | Q47: х | R47: х | S47: х | T47: х | U47: х
A49: Стандартизированные тарифные ставки на покрытие расходов в части строительства трансформаторных подстанций, С4, руб./кВт, без НДС, (в ценах 2001 года)
A50: 1х20 кВА | B50: 1х30 кВА | C50: 1х45 кВА | D50: 1 х 63 кВА | J50: 1 х 100 кВА
A51: ТПрн (бустер) | B51: ТПрн (бустер) | C51: ТПрн (бустер) | D51: КТПС | E51: КТП киоскового типа | H51: КТП блочного типа в бетонной оболочке | J51: КТПС | K51: КТП киоскового типа | N51: КТП блочного типа в бетонной оболочке
E52: однотрансформаторная | G52: двухтрансформаторная | H52: однотрансформаторная | I52: двухтрансформаторная | K52: однотрансформаторная | M52: двухтрансформаторная | N52: однотрансформаторная | O52: двухтрансформаторная
E53: тупикового типа | F53: проходного типа | K53: тупикового типа | L53: проходного типа
A54: ='[2]ст.ставки св.150'!A56/2 -> 3,634.49 | B54: ='[2]ст.ставки св.150'!B56/2 -> 2,526.68 | C54: ='[2]ст.ставки св.150'!C56/2 -> 1,878.77 | D54: ='[2]ст.ставки св.150'!D56/2 -> 627.86 | E54: ='[2]ст.ставки св.150'!E56/2 -> 636.12 | F54: ='[2]ст.ставки св.150'!F56/2 -> 1,330.66 | G54: ='[2]ст.ставки св.150'!G56/2 -> 3,970.40 | H54: ='[2]ст.ставки св.150'!H56/2 -> 3,833.86 | I54: ='[2]ст.ставки св.150'!I56/2 -> 7,082.16 | J54: ='[2]ст.ставки св.150'!J56/2 -> 381.16 | K54: ='[2]ст.ставки св.150'!K56/2 -> 414.07 | L54: ='[2]ст.ставки св.150'!L56/2 -> 870.71 | M54: ='[2]ст.ставки св.150'!M56/2 -> 2,513.12 | N54: ='[2]ст.ставки св.150'!N56/2 -> 2,629.04 | O54: ='[2]ст.ставки св.150'!O56/2 -> 4,702.07
A56: 1 х 160 кВА | G56: 1 х 250 кВА | M56: 1 х 400 кВА
A57: КТПС | B57: КТП киоскового типа | E57: КТП блочного типа в бетонной оболочке | G57: КТПС | H57: КТП киоскового типа | K57: КТП блочного типа в бетонной оболочке | M57: ТП встроенное | N57: КТП киоскового типа | Q57: КТП блочного типа в бетонной оболочке | S57: БКТП подземная
B58: однотрансформаторная | D58: двухтрансформаторная | E58: однотрансформаторная | F58: двухтрансформаторная | H58: однотрансформаторная | J58: двухтрансформаторная | K58: однотрансформаторная | L58: двухтрансформаторная | M58: двухтрансформаторная | N58: однотрансформаторная | P58: двухтрансформаторная | Q58: однотрансформаторная | R58: двухтрансформаторная | S58: двухтрансформаторная
B59: тупикового типа | C59: проходного типа | H59: тупикового типа | I59: проходного типа | N59: тупикового типа | O59: проходного типа
A60: ='[2]ст.ставки св.150'!A62/2 -> 257.89 | B60: ='[2]ст.ставки св.150'!B62/2 -> 280.84 | C60: ='[2]ст.ставки св.150'!C62/2 -> 569.54 | D60: ='[2]ст.ставки св.150'!D62/2 -> 1658.80 | E60: ='[2]ст.ставки св.150'!E62/2 -> 1657.81 | F60: ='[2]ст.ставки св.150'!F62/2 -> 3053.25 | G60: ='[2]ст.ставки св.150'!G62/2 -> 185.89 | H60: ='[2]ст.ставки св.150'!H62/2 -> 179.64 | I60: ='[2]ст.ставки св.150'!I62/2 -> 392.98 | J60: ='[2]ст.ставки св.150'!J62/2 -> 1112.22 | K60: ='[2]ст.ставки св.150'!K62/2 -> 1118.61 | L60: ='[2]ст.ставки св.150'!L62/2 -> 2106.07 | M60: ='[2]ст.ставки св.150'!M62/2 -> 1610.03 | N60: ='[2]ст.ставки св.150'!N62/2 -> 144.83 | O60: ='[2]ст.ставки св.150'!O62/2 -> 255.23 | P60: ='[2]ст.ставки св.150'!P62/2 -> 719.75 | Q60: ='[2]ст.ставки св.150'!Q62/2 -> 729.56 | R60: ='[2]ст.ставки св.150'!R62/2 -> 1372.18 | S60: ='[2]ст.ставки св.150'!S62/2 -> 6647.31
A62: 1 х 630 кВА | H62: 1 х 1000 кВА | O62: 1 х 1250 кВА
A63: ТП встроенное | B63: КТП киоскового типа | E63: КТП блочного типа в бетонной оболочке | G63: БКТП подземная | H63: ТП встроенное | I63: КТП киоскового типа | L63: КТП блочного типа в бетонной оболочке | N63: БКТП подземная | O63: ТП встроенное | P63: КТП блочного типа в бетонной оболочке | R63: БКТП подземная
A64: двухтрансформаторная | B64: однотрансформаторная | D64: двухтрансформаторная | E64: однотрансформаторная | F64: двухтрансформаторная | G64: двухтрансформаторная | H64: двухтрансформаторная | I64: однотрансформаторная | K64: двухтрансформаторная | L64: однотрансформаторная | M64: двухтрансформаторная | N64: двухтрансформаторная | O64: двухтрансформаторная | P64: однотрансформаторная | Q64: двухтрансформаторная | R64: двухтрансформаторная
B65: тупикового типа | C65: проходного типа | I65: тупикового типа | J65: проходного типа
A66: ='[2]ст.ставки св.150'!A68/2 -> 1149.30 | B66: ='[2]ст.ставки св.150'!B68/2 -> 134.81 | C66: ='[2]ст.ставки св.150'!C68/2 -> 201.88 | D66: ='[2]ст.ставки св.150'!D68/2 -> 524.59 | E66: ='[2]ст.ставки св.150'!E68/2 -> 495.86 | F66: ='[2]ст.ставки св.150'!F68/2 -> 920.19 | G66: ='[2]ст.ставки св.150'!G68/2 -> 4302.41 | H66: ='[2]ст.ставки св.150'!H68/2 -> 788.41 | I66: ='[2]ст.ставки св.150'!I68/2 -> 125.04 | J66: ='[2]ст.ставки св.150'!J68/2 -> 155.04 | K66: ='[2]ст.ставки св.150'!K68/2 -> 406.25 | L66: ='[2]ст.ставки св.150'!L68/2 -> 347.21 | M66: ='[2]ст.ставки св.150'!M68/2 -> 659.73 | N66: ='[2]ст.ставки св.150'!N68/2 -> 2762.43 | O66: ='[2]ст.ставки св.150'!O68/2 -> 715.60 | P66: ='[2]ст.ставки св.150'!P68/2 -> 289.86 | Q66: ='[2]ст.ставки св.150'!Q68/2 -> 592.66 | R66: ='[2]ст.ставки св.150'!R68/2 -> 2250.90
A69: Примечание:
A70: Условия применения стандартизированных тарифных ставок определены приказом ФСТ России от 11.09.2012 N 209-э/1 "Об утверждении Методических указаний по определению размера платы за технологическое присоединение к электрическим сетям"

Sheet Приложение 2
P1: Приложение 2 к решению региональной службы по тарифам Нижегородской области от 18 декабря 2015 года № 50/52 | Q1: Стандартизированные тарифные ставки для расчета платы за технологическое присоединение к электрическим сетям ООО «Нижегородская электросетевая компания» на 2016 год для заявителей, осуществляющих технологическое присоединение своих энергопринимающих устройств максимальной мощностью свыше 150 кВт
A4: Стандартизированные тарифные ставки на покрытие расходов на технологическое присоединение энергопринимающих устройств заявителей, не включающие в себя строительство объектов электросетевого хозяйства, С1, руб./кВт, (в ценах 2016 года)
A5: Наименование | K5: Постоянная схема электроснабжения | M5: Временная схема электроснабжения
K6: 0,4кВ | L6: 6-10кВ | M6: 0,4кВ | N6: 6-10кВ
A7: Стандартизированная тарифная ставка (руб./кВт), всего, в том числе по мероприятиям: | K7: 83.86 | L7: 73.42 | M7: 83.86 | N7: 73.42
A8: Подготовка и выдача сетевой организацией технических условий заявителю,С1.1 | K8: 15.43 | L8: 13.51 | M8: 15.43 | N8: 13.51
A9: Проверка сетевой организацией выполнения заявителем технических условий, С1.2 | K9: 24.73 | L9: 21.65 | M9: 24.73 | N9: 21.65
A10: Выполнение технических условий сетевой организацией | K10: 0.00 | L10: 0.00 | M10: 0.00 | N10: 0.00
A11: Проверка сетевой организацией выполнения заявителем технических условий | K11: 43.70 | L11: 38.26 | M11: 43.70 | N11: 38.26
A12: Участие в осмотре должностным лицом органа федерального государственного энергетического надзора присоединяемых устройств заявителя, С1.3 | K12: - | L12: - | M12: =K12 -> - | N12: -
A13: Фактические действия по присоединению и обеспечению работы устройств в электрической сети, С1.4 | K13: 43.70 | L13: 38.26 | M13: 43.70 | N13: 38.26
A15: Стандартизированные тарифные ставки на покрытие расходов в части строительства воздушных линий электропередач, С2, руб./1 км, без НДС, (в ценах 2001 года)
A16: Уровень напряжения, кВ | C16: СИП 2 | J16: СИП 3 | O16: АС
C17: 3х16мм2+1х25мм2 | D17: 3x25мм2+1x35мм2 | E17: 3x35мм2+1x50 мм2 | F17: 3x50мм2+1x50мм2 | G17: 3x70мм2+1x70мм2 | H17: 3x95мм2+1x95мм2 | I17: 3х120мм2+1х95мм2 | J17: 1х35мм2 | K17: 1х50мм2 | L17: 1х70мм2 | M17: 1х95мм2 | N17: 1х120мм2 | O17: 35мм2 | P17: 50мм2/8,0 | Q17: 70мм2/11,0 | R17: 95мм2/16,0 | S17: 120мм2/19,0
A18: 0,4 | C18: 137,331.62 | D18: 139,277.09 | E18: 148,615.36 | F18: 161,215.87 | G18: 170,899.12 | H18: ='[3]Локальная смета'!$J$57 -> 178,022.93 | I18: ='[4]Локальная смета'!$J$57 -> 185,708.81 | J18: х | K18: х | L18: х | M18: х | N18: х | O18: х | P18: х | Q18: х | R18: х | S18: х
A19: 6-10 | C19: х | D19: х | E19: х | F19: х | G19: х | H19: х | I19: х | J19: 219,655.48 | K19: 237,958.09 | L19: 249,304.90 | M19: 271,933.70 | N19: 295,216.67 | O19: 142,614.71 | P19: 151,860.05 | Q19: 156,476.82 | R19: 165,867.33 | S19: 172,649.10
A21: Стандартизированные тарифные ставки на покрытие расходов в части строительства кабельных линий электропередач без прокола грунта, С3, руб./1 км, без НДС, (в ценах 2001 года)
A22: Уровень напряжения, кВ | B22: Тип застройки | C22: ААБл-1 | J22: ААБл-10 | O22: АПвПг-10
C23: 50мм2 | D23: 70мм2 | E23: 95мм2 | F23: 120мм2 | G23: 150мм2 | H23: 185мм2 | I23: 240мм2 | J23: 3х70мм2 | K23: 3х95мм2 | L23: 3х120мм2 | M23: 3х150мм2 | N23: 3х240мм2 | O23: 3х70мм2/35 | P23: 3х95мм2/35 | Q23: 3х120мм2/50 | R23: 3х240мм2/70 | S23: 3х300мм2 /70 | T23: 3х400мм2/70 | U23: 3х500мм2/70
A24: 0,4 | B24: городская | C24: 454,826.06 | D24: 460,951.88 | E24: 513,837.36 | F24: 550,181.97 | G24: 560,201.90 | H24: 582,226.96 | I24: 629,061.97 | J24: х | K24: х | L24: х | M24: х | N24: х | O24: х | P24: х | Q24: х | R24: х | S24: х | T24: х | U24: х
A25: 0,4 | B25: сельская | C25: ='[5]Локальная смета'!$J$61 -> 242,466.65 | D25: ='[6]Локальная смета'!$J$61 -> 271,548.64 | E25: ='[7]Локальная смета'!$J$61 -> 293,603.18 | F25: 332,040.80 | G25: ='[8]Локальная смета'!$J$61 -> 338,598.93 | H25: 362,673.88 | I25: ='[9]Локальная смета'!$J$61 -> 381,869.71 | J25: х | K25: х | L25: х | M25: х | N25: х | O25: х | P25: х | Q25: х | R25: х | S25: х | T25: х | U25: х
A26: 6-10 | B26: городская | C26: х | D26: х | E26: х | F26: х | G26: х | H26: х | I26: х | J26: 503,118.62 | K26: 536,389.02 | L26: 568,983.23 | M26: 590,067.38 | N26: 653,841.02 | O26: 752,477.82 | P26: 787,685.19 | Q26: 836,482.71 | R26: 920,129.11 | S26: 946,516.23 | T26: ='[10]Локальная смета'!$J$79 -> 956,549.05 | U26: 1,026,290.91
A27: 6-10 | B27: сельская | C27: х | D27: х | E27: х | F27: х | G27: х | H27: х | I27: х | J27: 318,079.52 | K27: 335,564.67 | L27: 362,810.33 | M27: 389,586.00 | N27: 442,481.67 | O27: х | P27: х | Q27: х | R27: х | S27: х | T27: х | U27: х
A29: Уровень напряжения, кВ | B29: Тип застройки | C29: АПвБбШПг-1 | J29: ААБ2лШв-10 | O29: АПвПу2г-10
C30: 50мм2 | D30: 70мм2 | E30: 95мм2 | F30: 120мм2 | G30: 150мм2 | H30: 185мм2 | I30: 240мм2 | J30: 3х70мм2 | K30: 3х95мм2 | L30: 3х120мм2 | M30: 3х150мм2 | N30: 3х240мм2 | O30: 3х70мм2/35 | P30: 3х95мм2/35 | Q30: 3х120мм2/50 | R30: 3х240мм2/70 | S30: 3х300мм2 /70 | T30: 3х400мм2/70 | U30: 3х500мм2/70
A31: 0,4 | B31: городская | C31: 435,276.26 | D31: 476,426.38 | E31: 495,656.75 | F31: 515,318.25 | G31: 531,094.09 | H31: 549,999.10 | I31: 586,617.83 | J31: х | K31: х | L31: х | M31: х | N31: х | O31: х | P31: х | Q31: х | R31: х | S31: х | T31: х | U31: х
A32: 0,4 | B32: сельская | C32: 252,384.01 | D32: 267,207.96 | E32: 290,612.10 | F32: 305,093.87 | G32: 322,369.75 | H32: 348,624.91 | I32: 375,782.45 | J32: х | K32: х | L32: х | M32: х | N32: х | O32: х | P32: х | Q32: х | R32: х | S32: х | T32: х | U32: х
A33: 6-10 | B33: городская | C33: х | D33: х | E33: х | F33: х | G33: х | H33: х | I33: х | J33: 590,363.56 | K33: 651,861.16 | L33: 672,946.96 | M33: 703,773.07 | N33: 716,396.57 | O33: 783,109.82 | P33: 812,996.25 | Q33: 854,966.16 | R33: 954,223.08 | S33: 977,012.60 | T33: 1,023,489.34 | U33: 1,076,912.96
A34: 6-10 | B34: сельская | C34: х | D34: х | E34: х | F34: х | G34: х | H34: х | I34: х | J34: 325,972.92 | K34: 351,247.60 | L34: 374,754.76 | M34: 401,192.97 | N34: 422,297.41 | O34: х | P34: х | Q34: х | R34: х | S34: х | T34: х | U34: х
A36: Стандартизированные тарифные ставки на покрытие расходов в части строительства кабельных линий электропередачив с проколом грунта методом горизонтально-направленного бурения, С3, руб./на 100 м. линий, без НДС, (в ценах 2001 года)
A37: Уровень напряжения, кВ | B37: Тип застройки | C37: ААБл-1 | J37: ААБл-10 | O37: АПвПг-10
C38: 50мм2 | D38: 70мм2 | E38: 95мм2 | F38: 120мм2 | G38: 150мм2 | H38: 185мм2 | I38: 240мм2 | J38: 3х70мм2 | K38: 3х95мм2 | L38: 3х120мм2 | M38: 3х150мм2 | N38: 3х240мм2 | O38: 3х70мм2/35 | P38: 3х95мм2/35 | Q38: 3х120мм2/50 | R38: 3х240мм2/70 | S38: 3х300мм2 /70 | T38: 3х400мм2/70 | U38: 3х500мм2/70
A39: 0,4 | B39: городская | C39: 205,535.86 | D39: 210,709.75 | E39: 213,120.58 | F39: 216,257.26 | G39: 217,353.65 | H39: 219,739.51 | I39: 220,352.34 | J39: х | K39: х | L39: х | M39: х | N39: х | O39: х | P39: х | Q39: х | R39: х | S39: х | T39: х | U39: х
A40: 0,4 | B40: сельская | C40: 205,535.86 | D40: 210,709.75 | E40: 213,120.58 | F40: 216,257.26 | G40: 217,353.65 | H40: 219,739.51 | I40: 220,352.34 | J40: х | K40: х | L40: х | M40: х | N40: х | O40: х | P40: х | Q40: х | R40: х | S40: х | T40: х | U40: х
A41: 6-10 | B41: городская | C41: х | D41: х | E41: х | F41: х | G41: х | H41: х | I41: х | J41: 212,553.96 | K41: 215,106.41 | L41: 216,875.16 | M41: 219,185.26 | N41: 228,000.70 | O41: 291,561.77 | P41: 296,131.10 | Q41: 301,917.57 | R41: 310,632.19 | S41: 318,545.30 | T41: 323,954.52 | U41: 328,204.12
A42: 6-10 | B42: сельская | C42: х | D42: х | E42: х | F42: х | G42: х | H42: х | I42: х | J42: 212,553.96 | K42: 215,106.41 | L42: 216,875.16 | M42: 219,185.26 | N42: 228,000.70 | O42: х | P42: х | Q42: х | R42: х | S42: х | T42: х | U42: х
A44: Уровень напряжения, кВ | B44: Тип застройки | C44: АПвБбШПг-1 | J44: ААБ2лШв-10 | O44: АПвПу2г-10
C45: 50мм2 | D45: 70мм2 | E45: 95мм2 | F45: 120мм2 | G45: 150мм2 | H45: 185мм2 | I45: 240мм2 | J45: 3х70мм2 | K45: 3х95мм2 | L45: 3х120мм2 | M45: 3х150мм2 | N45: 3х240мм2 | O45: 3х70мм2/35 | P45: 3х95мм2/35 | Q45: 3х120мм2/50 | R45: 3х240мм2/70 | S45: 3х300мм2 /70 | T45: 3х400мм2/70 | U45: 3х500мм2/70
A46: 0,4 | B46: городская | C46: 185,956.76 | D46: 189,825.02 | E46: 190,201.50 | F46: 195,646.29 | G46: 196,348.90 | H46: 197,416.68 | I46: 201,293.85 | J46: х | K46: х | L46: х | M46: х | N46: х | O46: х | P46: х | Q46: х | R46: х | S46: х | T46: х | U46: х
A47: 0,4 | B47: сельская | C47: 185,956.76 | D47: 189,825.02 | E47: =E46 -> 190,201.50 | F47: 195,646.29 | G47: 196,348.90 | H47: 197,416.68 | I47: 201,293.85 | J47: х | K47: х | L47: х | M47: х | N47: х | O47: х | P47: х | Q47: х | R47: х | S47: х | T47: х | U47: х
A48: 6-10 | B48: городская | C48: х | D48: х | E48: х | F48: х | G48: х | H48: х | I48: х | J48: 203,511.62 | K48: 219,917.12 | L48: 224,226.27 | M48: 233,218.00 | N48: 235,614.65 | O48: 312,985.85 | P48: 316,536.61 | Q48: 322,433.14 | R48: 335,763.65 | S48: 337,314.55 | T48: 345,586.72 | U48: 348,849.16
A49: 6-10 | B49: сельская | C49: х | D49: х | E49: х | F49: х | G49: х | H49: х | I49: х | J49: 203,511.62 | K49: 219,917.12 | L49: 224,226.27 | M49: 233,218.00 | N49: 235,614.65 | O49: х | P49: х | Q49: х | R49: х | S49: х | T49: х | U49: х
A51: Стандартизированные тарифные ставки на покрытие расходов в части строительства трансформаторных подстанций, С4, руб./кВт, без НДС, (в ценах 2001 года)
A52: 1х20 кВА | B52: 1х30 кВА | C52: 1х45 кВА | D52: 1 х 63 кВА | J52: 1 х 100 кВА
A53: ТПрн (бустер) | B53: ТПрн (бустер) | C53: ТПрн (бустер) | D53: КТПС | E53: КТП киоскового типа | H53: КТП блочного типа в бетонной оболочке | J53: КТПС | K53: КТП киоскового типа | N53: КТП блочного типа в бетонной оболочке
E54: однотрансформаторная | G54: двухтрансформаторная | H54: однотрансформаторная | I54: двухтрансформаторная | K54: однотрансформаторная | M54: двухтрансформаторная | N54: однотрансформаторная | O54: двухтрансформаторная
E55: тупикового типа | F55: проходного типа | K55: тупикового типа | L55: проходного типа
A56: 7,268.98 | B56: 5,053.37 | C56: 3,757.53 | D56: 1,255.73 | E56: 1,272.24 | F56: 2,661.31 | G56: 7,940.80 | H56: 7,667.73 | I56: 14,164.31 | J56: 762.33 | K56: 828.15 | L56: 1,741.42 | M56: 5,026.24 | N56: 5,258.09 | O56: 9,404.14
A58: 1 х 160 кВА | G58: 1 х 250 кВА | M58: 1 х 400 кВА
A59: КТПС | B59: КТП киоскового типа | E59: КТП блочного типа в бетонной оболочке | G59: КТПС | H59: КТП киоскового типа | K59: КТП блочного типа в бетонной оболочке | M59: ТП встроенное | N59: КТП киоскового типа | Q59: КТП блочного типа в бетонной оболочке | S59: БКТП подземная
B60: однотрансформаторная | D60: двухтрансформаторная | E60: однотрансформаторная | F60: двухтрансформаторная | H60: однотрансформаторная | J60: двухтрансформаторная | K60: однотрансформаторная | L60: двухтрансформаторная | M60: двухтрансформаторная | N60: однотрансформаторная | P60: двухтрансформаторная | Q60: однотрансформаторная | R60: двухтрансформаторная | S60: двухтрансформаторная
B61: тупикового типа | C61: проходного типа | H61: тупикового типа | I61: проходного типа | N61: тупикового типа | O61: проходного типа
A62: 515.78 | B62: 561.69 | C62: 1,139.08 | D62: 3,317.60 | E62: 3,315.62 | F62: 6,106.49 | G62: 371.77 | H62: 359.27 | I62: 785.96 | J62: 2,224.44 | K62: 2,237.22 | L62: 4,212.13 | M62: 3,220.07 | N62: 289.66 | O62: 510.46 | P62: 1,439.50 | Q62: 1,459.12 | R62: 2,744.37 | S62: 13,294.62
A64: 1 х 630 кВА | H64: 1 х 1000 кВА | O64: 1 х 1250 кВА
A65: ТП встроенное | B65: КТП киоскового типа | E65: КТП блочного типа в бетонной оболочке | G65: БКТП подземная | H65: ТП встроенное | I65: КТП киоскового типа | L65: КТП блочного типа в бетонной оболочке | N65: БКТП подземная | O65: ТП встроенное | P65: КТП блочного типа в бетонной оболочке | R65: БКТП подземная
A66: двухтрансформаторная | B66: однотрансформаторная | D66: двухтрансформаторная | E66: однотрансформаторная | F66: двухтрансформаторная | G66: двухтрансформаторная | H66: двухтрансформаторная | I66: однотрансформаторная | K66: двухтрансформаторная | L66: однотрансформаторная | M66: двухтрансформаторная | N66: двухтрансформаторная | O66: двухтрансформаторная | P66: однотрансформаторная | Q66: двухтрансформаторная | R66: двухтрансформаторная
B67: тупикового типа | C67: проходного типа | I67: тупикового типа | J67: проходного типа
A68: 2,298.61 | B68: 269.61 | C68: 403.75 | D68: 1,049.18 | E68: 991.73 | F68: 1,840.38 | G68: 8,604.83 | H68: 1,576.83 | I68: 250.07 | J68: 310.08 | K68: 812.50 | L68: 694.41 | M68: 1,319.46 | N68: 5,524.85 | O68: 1,431.19 | P68: 579.72 | Q68: 1,185.33 | R68: 4,501.79
A71: Примечание:
A72: Условия применения стандартизированных тарифных ставок определены приказом ФСТ России от 11.09.2012 N 209-э/1 "Об утверждении Методических указаний по определению размера платы за технологическое присоединение к электрическим сетям"

Sheet Приложение 3
B2: Приложение 3 к решению региональной службы по тарифам Нижегородской области от 18 декабря 2015 года №50/52
A3: Приложение №3. Ставки за единицу максимальной мощности для расчета платы за технологическое присединение к электрическим сетям ООО «Нижегородская электросетевая компания» (в ценах 2016 года)
B6: руб./кВт (без НДС)
A7: № | B7: Наименование | C7: до 150 кВт | E7: свыше 150 кВт
C8: 0,4 кВ | D8: 6-10 кВ | E8: 0,4 кВ | F8: 6-10 кВ
A9: 1 | B9: Подготовка, выдача сетевой организацией технических условий и их согласование | C9: 15.43 | D9: 13.51 | E9: 15.43 | F9: 13.51
A10: 2 | B10: Разработка сетевой организацией проектной документации по строительству объектов электросетевого хозяйства - от существующих объектов электросетевого хозяйства до присоединяемых энергопринимающих устройств и (или) объектов электроэнергетики | C10: - | D10: - | E10: - | F10: -
A11: 3 | B11: Выполнение сетевой организацией, мероприятий, связанных со строительством объектов электросетевого хозяйства - от существующих объектов электросетевого хозяйства до присоединяемых энергопринимающих устройств и (или) объектов электроэнергетики | C11: х | D11: х | E11: х | F11: х
A12: 3.1. | B12: строительство воздушных линий | C12: 7,121.98 | D12: 227.25 | E12: 9,571.35 | F12: 1,885.17
A13: 3.2. | B13: строительство кабельных линий | C13: 5,886.92 | D13: 4,718.63 | E13: 3,473.80 | F13: 11,776.79
A14: 3.3. | B14: строительство пунктов секционирования | C14: - | D14: - | E14: - | F14: -
A15: 3.4. | B15: строительство комплектных трансформаторных подстанций (КТП), распределительных трансформаторных подстанций (РТП) с уровнем напряжения до 35 кВ | C15: Ставки* равны стандартизированным тарифным ставкам С4
A16: 3.5. | B16: строительство центров питания, подстанций уровнем напряжения 35 кВ и выше (ПС) | C16: - | D16: - | E16: - | F16: -
A17: 4 | B17: Проверка сетевой организацией выполнения заявителем ТУ | C17: 24.73 | D17: 21.65 | E17: 24.73 | F17: 21.65
A18: 5 | B18: Участие в осмотре должностным лицом Ростехнадзора присоединяемых устройств | C18: - | D18: - | E18: - | F18: -
A19: 6 | B19: Фактические действия по присоединению и обеспечению работы устройств в электрической сети | C19: 43.70 | D19: 38.26 | E19: 43.70 | F19: 38.26
B21: Примечание:
A22: *) – в случае, если согласно техническим условиям предусматриваются мероприятия по строительству комплектных трансформаторных подстанций (КТП), распределительных трансформаторных подстанций (РТП) с уровнем напряжения до 35 кВ, для расчета платы за технологическое присоединение посредством ставок платы за единицу максимальной мощности на покрытие расходов сетевой организации на строительство подстанций, необходимо умножать данные ставки на индекс изменения сметной стоимости по строительно-монтажным работам (Zизм.ст)
